bitfinex-derivatives/quotes_SOLF0:USTF0_20241218
["timestamp","ask_amount","ask_price","bid_price","bid_amount"]
[1734500472791,2.46,217.59,217.53,5.71939053]
[1734500472987,2.46,217.59,217.55,5.71939053]
[1734500474198,2.46,217.59,217.53,5.71939053]
[1734500475487,3.0272,217.65,217.55,5.71939053]
[1734500475488,2.46,217.64,217.55,5.71939053]
[1734500475690,5.71939053,217.63,217.57,5.71939053]
[1734500475889,2.46,217.64,217.57,5.71939053]
[1734500476096,5.71939053,217.63,217.57,5.71939053]
[1734500476394,2.2978,217.63,217.57,8.01769053]
[1734500476594,8.17939053,217.64,217.57,5.71939053]
[1734500476791,8.17939053,217.64,217.59,5.71939053]
[1734500477093,8.17939053,217.64,217.59,8.01749053]
[1734500477787,2.46,217.64,217.59,8.01749053]
[1734500477989,2.46,217.64,217.6,2.2981]
[1734500478902,192.69584768,217.71,217.53,3.0506]
[1734500478903,189.72524768,217.73,217.63,5.71939053]
[1734500479094,2.46,217.72,217.65,5.71939053]
[1734500479699,2.46,217.72,217.67,5.71939053]
[1734500481094,8.17939053,217.72,217.67,5.71939053]
[1734500481296,2.46,217.72,217.7,2.297]
[1734500482101,3.1126,217.78,217.7,2.297]
[1734500482399,5.71939053,217.76,217.69,5.71939053]
[1734500482599,5.71939053,217.74,217.67,5.71939053]
[1734500483403,5.71939053,217.74,217.69,2.2971]
[1734500486602,2.2965,217.75,217.62,2.46]
[1734500486603,5.71939053,217.72,217.62,2.46]
[1734500486905,8.17939053,217.72,217.66,5.71939053]
[1734500487205,2.46,217.72,217.67,2.2973]
[1734500489404,2.46,217.73,217.68,8.01649053]
[1734500489605,2.46,217.73,217.68,5.71939053]
[1734500490506,2.46,217.73,217.69,2.2971]
[1734500493309,2.46,217.73,217.7,2.297]
[1734500493608,2.46,217.73,217.7,8.01639053]
[1734500495604,2.46,217.73,217.7,2.297]
[1734500496908,2.46,217.73,217.68,8.01649053]
[1734500497311,2.46,217.73,217.68,5.71939053]
[1734500497507,4.7567,217.73,217.68,8.01659053]
[1734500500510,2.2968,217.72,217.67,2.2973]
[1734500500809,8.01619053,217.72,217.67,2.2973]
[1734500501615,8.01619053,217.72,217.66,13.50421654]
[1734500503018,5.71939053,217.7,217.6,3.1284]
[1734500503218,5.71939053,217.7,217.55,4.81573406]
[1734500503219,5.71939053,217.64,217.55,3.1233]
[1734500503421,2.44,217.63,217.57,5.71939053]
[1734500503619,2.298,217.61,217.57,5.71939053]
[1734500504617,2.298,217.61,217.56,5.71939053]
[1734500505119,2.2981,217.6,217.56,5.71939053]
[1734500505826,2.2981,217.6,217.58,0.233]
[1734500507228,2.2982,217.6,217.58,0.233]
[1734500508626,2.2982,217.59,217.58,0.233]
[1734500521734,2.2984,217.57,217.54,5.71939053]
[1734500521935,4.7384,217.57,217.54,5.71939053]
[1734500525628,2.44,217.57,217.45,2.44]
[1734500525933,5.71939053,217.56,217.51,5.45147859]
[1734500526630,4.7385,217.57,217.52,5.71939053]
[1734500526831,2.44,217.57,217.54,5.71939053]
[1734500527229,2.44,217.57,217.56,5.71939053]
[1734500528832,2.44,217.57,217.54,8.01799053]
[1734500529935,2.44,217.57,217.54,5.71939053]
[1734500531534,4.7384,217.57,217.54,5.71939053]
[1734500534937,2.44,217.57,217.54,5.71939053]
[1734500535843,2.2983,217.58,217.54,8.01809053]
[1734500536038,4.7383,217.58,217.54,8.01809053]
[1734500539840,4.7383,217.58,217.54,5.71939053]
[1734500544443,4.7383,217.58,217.53,2.2988]
[1734500544647,2.2984,217.57,217.53,2.2988]
[1734500545149,4.7383,217.58,217.54,2.2987]
[1734500545845,307.59011806,217.7,217.57,2.2984]
[1734500545846,2.44,217.61,217.57,2.2984]
[1734500546047,2.44,217.61,217.58,5.71939053]
[1734500546644,2.44,217.62,217.58,5.71939053]
[1734500548550,4.7379,217.62,217.58,5.71939053]
[1734500549251,2.2979,217.62,217.57,2.2984]
[1734500549450,4.7379,217.62,217.57,2.2984]
[1734500550343,4.7377,217.62,217.57,2.2982]
[1734500551553,2.2978,217.61,217.56,2.2983]
[1734500551950,2.2978,217.61,217.56,8.01769053]
[1734500552351,4.7378,217.61,217.56,8.01769053]
[1734500554653,5.71939053,217.59,217.51,1.14953345]
[1734500554854,5.71939053,217.57,217.52,4.86320549]
[1734500555153,2.44,217.56,217.49,11.3353296]
[1734500555355,2.44,217.56,217.5,4.86323957]
[1734500555550,2.44,217.56,217.51,4.86323957]
[1734500555755,8.01779053,217.55,217.49,11.3353296]
[1734500555958,8.01779053,217.55,217.5,4.86335033]
[1734500556146,8.01779053,217.55,217.49,11.3353296]
[1734500556651,2.2984,217.55,217.51,5.71939053]
[1734500558858,2.2984,217.55,217.5,2.299]
[1734500559060,5.71939053,217.55,217.49,11.3353296]
[1734500559261,2.2986,217.54,217.49,11.3353296]
[1734500560458,2.2986,217.54,217.49,13.6344296]
[1734500560860,2.2986,217.54,217.49,7.91503907]
[1734500561054,2.2986,217.54,217.49,11.3353296]
[1734500562161,2.2986,217.54,217.49,13.6344296]
[1734500563061,2.2988,217.52,217.47,2.2992]
[1734500563262,5.71939053,217.53,217.47,8.01859053]
[1734500563564,2.44,217.52,217.47,8.01859053]
[1734500564455,5.71939053,217.51,217.45,0.21795]
[1734500564763,5.71939053,217.47,217.45,0.21795]
[1734500564964,2.44,217.46,217.37,49.01484607]
[1734500565266,5.71939053,217.43,217.37,49.01484607]
[1734500565460,8.01919053,217.43,217.37,51.31524607]
[1734500565962,8.01919053,217.43,217.37,49.01484607]
[1734500566161,5.71939053,217.39,217.17,58.84817096]
[1734500566360,5.71939053,217.36,217.3,5.71939053]
[1734500566561,2.44,217.35,217.29,2.3013]
[1734500566864,2.44,217.35,217.29,11.13155563]
[1734500567062,2.44,217.35,217.31,5.71939053]
[1734500568055,2.44,217.35,217.26,4.73328119]
[1734500568056,5.71939053,217.33,217.26,4.73328119]
[1734500568266,2.44,217.35,217.23,5.71939053]
[1734500568460,5.71939053,217.3,217.14,4.73328119]
[1734500568655,2.44,217.29,217.24,5.71939053]
[1734500568861,4.7413,217.29,217.22,5.46849579]
[1734500569054,2.44,217.29,217.21,5.71939053]
[1734500569255,5.71939053,217.28,217.22,5.71939053]
[1734500570363,5.71939053,217.26,217.2,5.71939053]
[1734500571263,2.44,217.29,217.22,5.71939053]
[1734500571566,8.15939053,217.29,217.22,5.71939053]
[1734500571765,5.71939053,217.23,216.92,6.26817096]
[1734500571964,5.71939053,216.97,216.93,5.55107981]
[1734500572267,5.71939053,216.94,216.6,6.78]
[1734500572458,5.71939053,216.92,216.61,8.40050944]
[1734500572658,20.59,217.05,216.61,1.62050944]
[1734500572857,20.59,217.05,216.61,8.40050944]
[1734500572858,3.0843,216.91,216.61,8.40050944]
[1734500573160,5.71939053,216.86,216.77,5.71939053]
[1734500573470,8.02529053,216.86,216.71,2.3074]
[1734500573764,5.71939053,216.82,216.66,7.06]
[1734500573963,7.8843289,216.9,216.66,5.52025333]
[1734500574164,8.99429894,216.79,216.67,2.3078]
[1734500574361,7.8843289,216.78,216.66,5.52025333]
[1734500574559,5.59841358,216.69,216.66,5.52025333]
[1734500574759,3.03243419,216.77,216.43,6.26817096]
[1734500574760,4.85189471,216.68,216.43,6.26817096]
[1734500574965,5.59762355,216.6,216.44,1.77224213]
[1734500575168,8.99429894,216.71,216.44,1.77224213]
[1734500575169,7.8843289,216.59,216.55,2.3091]
[1734500575359,8.99429894,216.68,216.44,6.44540309]
[1734500575561,5.5662872,216.57,216.45,0.84848382]
[1734500575868,5.5662872,216.56,216.5,1.44504]
[1734500576065,5.5662872,216.56,216.51,8.99429894]
[1734500576458,5.5662872,216.56,216.5,10.43933894]
[1734500576664,5.53791943,216.59,216.53,8.99429894]
[1734500576861,4.94542981,216.58,216.57,8.99429894]
[1734500577068,12.07859894,216.76,216.57,8.99429894]
[1734500577366,7.06,216.87,216.67,8.99429894]
[1734500577559,5.4973632,216.76,216.67,8.99429894]
[1734500577764,5.4973632,216.76,216.7,8.99429894]
[1734500577968,8.9884,216.9,216.72,14.38369389]
[1734500578269,2.94629415,216.89,216.72,14.38369389]
[1734500578465,11.2939,216.9,216.72,14.38369389]
[1734500578664,5.51786954,216.85,216.72,14.38369389]
[1734500578867,2.90605274,216.84,216.72,14.38369389]
[1734500579169,2.90605274,216.84,216.77,2.3067]
[1734500579468,2.90605274,216.84,216.72,14.38369389]
[1734500579674,2.90605274,216.83,216.75,2.307]
[1734500579969,2.90605274,216.82,216.76,14.38369389]
[1734500580168,5.9581,216.9,216.76,14.38369389]
[1734500580369,2.90120295,216.89,216.76,14.38369389]
[1734500580571,2.90120295,216.88,216.76,14.38369389]
[1734500580765,2.90120295,216.87,216.76,14.38369389]
[1734500580977,2.90120295,216.87,216.6,4.5584]
[1734500580978,2.90175491,216.86,216.6,4.5584]
[1734500581167,14.38369389,216.95,216.74,14.38369389]
[1734500581366,2.90057511,216.94,216.74,14.38369389]
[1734500581562,2.90062892,216.93,216.74,14.38369389]
[1734500581765,2.90062892,216.92,216.74,14.38369389]
[1734500582069,2.90062892,216.91,216.74,14.38369389]
[1734500582272,2.90062892,216.9,216.81,5.64208664]
[1734500582572,2.90062892,216.89,216.81,5.64208664]
[1734500582766,2.90062892,216.88,216.81,5.64208664]
[1734500582971,2.90062892,216.87,216.81,5.64208664]
[1734500583175,14.38369389,216.95,216.81,5.64208664]
[1734500583371,2.89192722,216.94,216.81,5.64208664]
[1734500583569,5.19702722,216.93,216.81,5.64208664]
[1734500583770,2.3051,216.93,216.81,5.64208664]
[1734500583970,2.89244135,216.92,216.81,5.64208664]
[1734500584171,2.89244135,216.91,216.81,5.64208664]
[1734500584375,2.89244135,216.9,216.81,5.64208664]
[1734500584675,2.89244135,216.89,216.81,5.64208664]
[1734500584871,2.3051,216.93,216.81,5.64208664]
[1734500585171,2.88966625,216.92,216.81,5.64208664]
[1734500585376,7.06,216.95,216.81,5.64208664]
[1734500585566,2.88776712,216.94,216.82,14.38369389]
[1734500585770,7.06,216.95,216.85,2.3058]
[1734500585973,2.8876317,216.94,216.81,5.64208664]
[1734500586278,21.44369389,216.95,216.81,5.64208664]
[1734500586465,2.88596918,216.94,216.81,5.64208664]
[1734500586668,2.88596918,216.93,216.81,5.64208664]
[1734500586872,21.44369389,216.95,216.81,5.64208664]
[1734500587272,2.88592752,216.94,216.81,5.64208664]
[1734500587466,21.44369389,216.95,216.81,5.64208664]
[1734500587876,14.38369389,216.91,216.73,2.9993]
[1734500588069,2.88471963,216.9,216.73,2.9993]
[1734500588666,2.88471963,216.9,216.78,5.57896614]
[1734500588875,14.38369389,216.91,216.78,5.57896614]
[1734500589477,16.68899389,216.91,216.79,2.3065]
[1734500589866,2.3051,216.93,216.8,2.3064]
[1734500590072,3.0431,216.96,216.8,14.38369389]
[1734500590269,2.88452551,216.95,216.78,5.57896614]
[1734500590471,14.38369389,216.93,216.78,5.57896614]
[1734500591068,3.0431,216.96,216.8,14.38369389]
[1734500591266,23.02597192,217.01,216.8,14.38369389]
[1734500591472,2.88574856,216.99,216.89,2.3054]
[1734500591775,23.02597192,217.01,216.84,14.38369389]
[1734500592174,2.88696247,216.99,216.84,14.38369389]
[1734500592375,20.00197192,217.01,216.84,14.38369389]
[1734500592678,2.88708097,217.0,216.84,14.38369389]
[1734500592975,2.88693971,216.99,216.88,2.3055]
[1734500593174,20.00197192,217.01,216.81,6.8]
[1734500593372,5.19193758,216.98,216.87,2.3056]
[1734500593572,2.88733758,217.0,216.81,6.8]
[1734500593771,2.88733758,216.99,216.81,6.8]
[1734500593974,5.61827803,217.01,216.9,2.3053]
[1734500594174,2.88833846,217.0,216.9,2.3053]
[1734500594474,2.88833846,216.99,216.9,2.3053]
[1734500594685,5.61827803,217.01,216.91,2.3052]
[1734500594979,2.8900324,217.0,216.91,2.3052]
[1734500595174,2.88977035,216.99,216.91,2.3052]
[1734500595369,2.88977035,216.98,216.91,2.3052]
[1734500595574,7.92247803,217.01,216.91,2.3052]
[1734500595875,2.89183854,217.0,216.91,2.3052]
[1734500596069,7.92247803,217.01,216.89,2.3054]
[1734500596070,2.89183854,216.99,216.89,2.3054]
[1734500596276,5.61827803,217.01,216.89,2.3054]
[1734500596476,5.61827803,217.01,216.81,6.8]
[1734500596676,7.52439805,217.0,216.81,6.8]
[1734500596877,9.82889805,216.99,216.81,6.8]
[1734500597078,2.89399925,216.98,216.81,6.8]
[1734500597375,2.89399925,216.97,216.81,6.8]
[1734500597678,2.89399925,216.96,216.89,2.3053]
[1734500597874,2.89399925,216.95,216.89,2.3053]
[1734500598083,2.3045,216.99,216.89,2.3053]
[1734500598275,7.53447574,216.98,216.92,2.3051]
[1734500598480,7.53447574,216.97,216.92,2.3051]
[1734500598684,2.89787528,216.96,216.89,5.67017155]
[1734500598872,2.89787528,216.95,216.89,5.67017155]
[1734500599072,2.89787528,216.94,216.89,5.67017155]
[1734500599283,2.89787528,216.93,216.89,5.67017155]
[1734500599486,14.38369389,216.98,216.89,5.67017155]
[1734500599673,2.90249852,216.97,216.89,5.67017155]
[1734500599984,14.38369389,216.98,216.89,7.97557155]
[1734500600180,7.54641697,216.97,216.89,7.97557155]
[1734500602175,7.54641697,216.96,216.89,7.97557155]
[1734500602380,7.54641697,216.95,216.89,7.97557155]
[1734500602577,7.54641697,216.94,216.89,7.97557155]
[1734500602778,16.68819389,216.98,216.89,7.97557155]
[1734500602779,7.57543996,216.93,216.89,7.97557155]
[1734500603080,7.57543996,216.92,216.89,5.67017155]
[1734500603285,2.91363075,216.91,216.9,2.3053]
[1734500603480,2.91363075,216.99,216.9,2.3053]
[1734500603786,7.58243144,216.98,216.91,2.3052]
[1734500603989,7.58243144,216.97,216.91,2.3052]
[1734500604180,7.58243144,216.96,216.91,2.3052]
[1734500604481,2.3043,217.0,216.91,2.3052]
[1734500604482,7.58243144,216.95,216.91,2.3052]
[1734500604683,7.58243144,216.94,216.91,2.3052]
[1734500604884,7.58243144,216.93,216.91,2.3052]
[1734500605077,7.58243144,216.92,216.91,2.3052]
[1734500605277,2.91363075,216.92,216.91,2.3052]
[1734500606076,54.14880192,217.02,216.92,2.305]
[1734500606279,7.62151864,217.01,216.89,5.67017155]
[1734500606482,7.62151864,217.0,216.89,5.67017155]
[1734500606680,7.62151864,216.99,216.89,5.67017155]
[1734500606882,7.62151864,216.98,216.89,5.67017155]
[1734500607080,7.62151864,216.97,216.89,5.67017155]
[1734500607383,39.76510803,217.02,216.89,5.67017155]
[1734500607384,7.62151864,216.96,216.89,5.67017155]
[1734500607583,7.62151864,216.95,216.92,2.3051]
[1734500607781,7.62151864,216.94,216.92,2.3051]
[1734500608083,7.62151864,216.93,216.92,2.3051]
[1734500608286,7.62151864,216.93,216.89,5.67017155]
[1734500608475,7.62151864,216.92,216.89,5.67017155]
[1734500608784,2.92778348,216.91,216.9,2.3053]
[1734500609279,2.92858653,216.91,216.9,2.3053]
[1734500612187,2.92858653,216.91,216.89,5.67017155]
[1734500612387,8.84193579,216.99,216.89,5.67017155]
[1734500612582,2.94756509,216.9,216.89,5.67017155]
[1734500613986,2.94756509,216.9,216.89,7.97557155]
[1734500615483,14.38369389,216.99,216.8,3.1202]
[1734500615684,2.81588583,216.9,216.8,9.1202]
[1734500615881,2.81588583,216.89,216.8,3.1202]
[1734500616087,2.81588583,216.88,216.81,2.3063]
[1734500616283,2.81588583,216.87,216.81,2.3063]
[1734500616485,2.81588583,216.86,216.81,2.3063]
[1734500616684,2.81588583,216.85,216.81,2.3063]
[1734500616892,2.81588583,216.84,216.81,2.3063]
[1734500617193,2.81588583,216.83,216.75,20.40369389]
[1734500617383,2.81588583,216.82,216.8,1.03633]
[1734500617591,217.3557613,216.94,216.71,2.903]
[1734500617592,5.12218583,216.81,216.71,2.903]
[1734500617788,2.81588583,216.8,216.75,2.3069]
[1734500617991,8.40526391,216.86,216.75,2.3069]
[1734500617992,2.81588583,216.79,216.75,2.3069]
[1734500618193,2.81588583,216.78,216.75,2.3069]
[1734500618393,2.81588583,216.77,216.75,2.3069]
[1734500618585,2.3063,216.81,216.72,2.3072]
[1734500618790,2.82117579,216.76,216.74,5.52410833]
[1734500618985,2.82117579,216.75,216.74,5.52410833]
[1734500619188,8.40526391,216.84,216.74,5.52410833]
[1734500619493,3.0949,216.85,216.74,5.52410833]
[1734500619684,8.40526391,216.84,216.74,5.52410833]
[1734500619887,8.40526391,216.87,216.76,14.38369389]
[1734500620088,8.40526391,216.92,216.77,5.74]
[1734500620294,8.40526391,216.94,216.77,5.74]
[1734500620594,2.3052,216.92,216.77,5.74]
[1734500621397,2.3053,216.9,216.77,5.74]
[1734500621695,27.62618202,216.95,216.77,5.74]
[1734500621893,2.3053,216.91,216.83,2.3061]
[1734500622094,7.89362701,216.95,216.77,5.74]
[1734500622396,15.05196279,216.95,216.77,5.74]
[1734500622991,2.3052,216.92,216.83,2.3061]
[1734500624187,2.3052,216.92,216.84,2.306]
[1734500624388,7.89362701,216.95,216.8,14.38369389]
[1734500624997,2.3051,216.93,216.85,2.3059]
[1734500625398,7.89362701,216.95,216.8,14.38369389]
[1734500626091,15.05783941,216.95,216.82,2.3062]
[1734500627304,7.89362701,216.95,216.82,2.3062]
[1734500627496,2.3054,216.91,216.83,2.3061]
[1734500627891,2.3054,216.91,216.85,5.538334]
[1734500628193,2.3054,216.9,216.85,5.538334]
[1734500628395,7.89362701,216.95,216.79,5.74]
[1734500628602,15.05714792,216.95,216.81,2.3063]
[1734500628793,14.38369389,216.92,216.75,3.0321]
[1734500628998,7.89362701,216.91,216.8,2.3065]
[1734500629400,2.3055,216.9,216.75,3.0321]
[1734500629600,2.3055,216.9,216.82,2.3062]
[1734500630594,2.3055,216.89,216.82,2.3062]
[1734500630802,7.16377431,216.94,216.82,2.3062]
[1734500631097,7.9139713,216.95,216.84,2.306]
[1734500631098,15.07774561,216.95,216.84,2.306]
[1734500631298,2.3051,216.94,216.79,14.38369389]
[1734500631499,7.9139713,216.95,216.89,2.3055]
[1734500631701,7.91705231,216.97,216.83,5.5]
[1734500631900,2.3048,216.96,216.83,5.5]
[1734500632099,2.3048,216.96,216.88,2.3055]
[1734500634303,9.125,216.98,216.88,2.3055]
[1734500634507,9.125,216.98,216.8,3.0919]
[1734500634703,14.38369389,216.96,216.81,5.5]
[1734500634907,2.3057,216.88,216.81,5.5]
[1734500635108,2.3057,216.88,216.79,5.5]
[1734500635809,2.3055,216.89,216.82,2.3062]
[1734500639209,2.3057,216.87,216.8,2.3064]
[1734500640209,2.3057,216.87,216.75,17.41579389]
[1734500640412,7.16718669,216.94,216.75,17.41579389]
[1734500640413,14.38369389,216.92,216.75,17.41579389]
[1734500640612,14.38369389,216.92,216.75,22.67579389]
[1734500641107,2.306,216.85,216.78,2.3066]
[1734500641306,14.38369389,216.88,216.72,5.26]
[1734500641509,6.0307,216.84,216.72,5.26]
[1734500642015,2.3064,216.82,216.74,2.3071]
[1734500642309,6.0307,216.84,216.69,5.26]
[1734500642617,20.41439389,216.84,216.67,19.64369389]
[1734500643112,2.3068,216.77,216.69,2.3075]
[1734500643515,2.3068,216.77,216.67,19.64369389]
[1734500643815,2.307,216.76,216.68,2.3077]
[1734500644210,2.307,216.76,216.67,5.26]
[1734500644410,2.307,216.76,216.69,2.3076]
[1734500644608,7.489153,216.83,216.67,5.26]
[1734500644814,20.41439389,216.84,216.7,2.3074]
[1734500645114,2.3066,216.79,216.67,19.64369389]
[1734500646017,20.41439389,216.84,216.67,19.64369389]
[1734500646018,2.3067,216.78,216.67,19.64369389]
[1734500646617,2.3065,216.8,216.72,2.3073]
[1734500646817,6.0307,216.84,216.67,19.64369389]
[1734500647018,6.0307,216.84,216.71,14.38369389]
[1734500647414,3.0049,216.84,216.75,14.38369389]
[1734500647617,3.0044,216.87,216.76,5.02]
[1734500647820,2.3058,216.86,216.78,2.3066]
[1734500648717,2.3059,216.85,216.77,2.3068]
[1734500648914,3.0044,216.87,216.72,3.1314]
[1734500649113,14.38369389,216.84,216.67,19.40369389]
[1734500649321,2.3067,216.78,216.7,2.3074]
[1734500649511,14.38369389,216.84,216.67,19.40369389]
[1734500649714,14.38369389,216.84,216.67,14.38369389]
[1734500650022,2.3066,216.79,216.69,2.3076]
[1734500650218,2.3066,216.79,216.67,14.38369389]
[1734500650219,3.1357,216.78,216.63,14.38369389]
[1734500650421,2.8715,216.77,216.61,0.9233184]
[1734500650622,7.8915,216.77,216.61,0.9233184]
[1734500651022,7.8915,216.77,216.65,2.308]
[1734500652214,7.8915,216.77,216.61,0.9233184]
[1734500652415,2.8715,216.77,216.63,14.38369389]
[1734500653217,14.38369389,216.76,216.61,0.9233184]
[1734500653923,2.3076,216.69,216.61,0.9233184]
[1734500654518,2.3076,216.68,216.61,0.9233184]
[1734500654822,5.2288,216.68,216.6,2.3084]
[1734500655124,5.2288,216.68,216.61,2.3083]
[1734500655523,2.9212,216.68,216.61,2.3083]
[1734500655720,2.9212,216.68,216.63,2.3082]
[1734500655921,14.38369389,216.76,216.55,19.40369389]
[1734500656125,2.3073,216.71,216.55,19.40369389]
[1734500656625,2.9336,216.75,216.55,19.40369389]
[1734500656826,2.3072,216.72,216.63,2.3081]
[1734500657321,2.3072,216.72,216.55,19.40369389]
[1734500657521,5.2405,216.75,216.59,14.38369389]
[1734500657725,2.9336,216.75,216.59,14.38369389]
[1734500657923,2.9336,216.75,216.6,3.1912]
[1734500658823,2.9336,216.75,216.63,14.38369389]
[1734500659025,2.9336,216.75,216.63,19.16369389]
[1734500659231,2.9336,216.75,216.7,2.3074]
[1734500659525,2.9336,216.75,216.63,19.16369389]
[1734500659725,2.8715,216.77,216.64,3.1814]
[1734500660030,2.8715,216.77,216.71,2.3073]
[1734500660221,2.9357,216.78,216.67,14.38369389]
[1734500660526,3.0154,216.82,216.67,14.38369389]
[1734500661426,3.0154,216.82,216.71,14.38369389]
[1734500662025,4.78,216.87,216.71,14.38369389]
[1734500662323,14.38369389,216.88,216.71,19.16369389]
[1734500662726,14.38369389,216.88,216.71,4.78]
[1734500662924,2.306,216.83,216.72,2.3072]
[1734500663124,14.38369389,216.88,216.72,2.3072]
[1734500663426,2.3064,216.8,216.72,2.3072]
[1734500663926,14.38369389,216.88,216.72,2.3072]
[1734500664318,14.38369389,216.88,216.71,4.78]
[1734500664626,14.38369389,216.88,216.74,2.3069]
[1734500665026,14.38369389,216.88,216.71,4.78]
[1734500665521,14.38369389,216.84,216.65,4.78]
[1734500665926,14.38369389,216.84,216.64,3.1814]
[1734500666123,2.3068,216.76,216.64,3.1814]
[1734500666324,2.3068,216.76,216.68,2.3076]
[1734500668029,2.3066,216.78,216.69,2.3075]
[1734500668225,2.3066,216.78,216.64,3.1814]
[1734500668629,2.3067,216.77,216.69,2.3075]
[1734500669729,2.3068,216.76,216.64,3.1814]
[1734500670130,2.3068,216.76,216.68,2.3075]
[1734500670937,9.1404,216.8,216.67,14.38369389]
[1734500671231,6.1834,216.8,216.67,14.38369389]
[1734500672026,2.3066,216.78,216.71,2.3073]
[1734500673230,2.3066,216.78,216.67,14.38369389]
[1734500673535,20.56709389,216.8,216.64,3.1814]
[1734500675141,2.307,216.74,216.67,2.3077]
[1734500675339,20.56709389,216.8,216.64,3.1814]
[1734500675735,2.3071,216.73,216.66,2.3078]
[1734500675943,20.56709389,216.8,216.6,7.7512]
[1734500676341,2.3073,216.72,216.64,2.308]
[1734500676742,14.38369389,216.76,216.59,14.38369389]
[1734500676943,14.38369389,216.72,216.55,14.38369389]
[1734500677444,14.38369389,216.72,216.52,3.0791]
[1734500678042,2.3077,216.68,216.59,2.3085]
[1734500678243,14.38369389,216.72,216.59,2.3085]
[1734500678637,14.38369389,216.72,216.6,2.3085]
[1734500680542,2.3077,216.67,216.6,2.3085]
[1734500686638,2.3077,216.67,216.59,2.3085]
[1734500686639,2.3078,216.67,216.59,2.3085]
[1734500687140,9.00323147,216.75,216.61,9.00323147]
[1734500687543,2.9135,216.76,216.64,9.00323147]
[1734500688138,2.3071,216.74,216.64,9.00323147]
[1734500688942,2.3071,216.74,216.67,2.3077]
[1734500689242,2.3071,216.74,216.64,9.00323147]
[1734500690536,2.3071,216.74,216.67,2.3077]
[1734500691042,2.307,216.74,216.66,2.3078]
[1734500691241,2.9135,216.76,216.64,9.00323147]
[1734500691442,2.9135,216.76,216.68,2.3076]
[1734500691443,5.2204,216.76,216.68,2.3076]
[1734500691643,2.9135,216.76,216.64,9.00323147]
[1734500692849,9.00323147,216.75,216.63,3.1736]
[1734500693143,9.00323147,216.75,216.61,9.00323147]
[1734500693749,9.00323147,216.72,216.59,4.08]
[1734500693946,9.00323147,216.72,216.58,9.00323147]
[1734500695452,2.3075,216.69,216.62,2.3082]
[1734500698152,2.3072,216.72,216.65,2.3079]
[1734500698342,9.00323147,216.75,216.61,9.00323147]
[1734500698751,2.3073,216.71,216.63,2.308]
[1734500699547,2.3073,216.71,216.64,2.308]
[1734500700648,2.3073,216.71,216.62,2.3082]
[1734500700952,2.3073,216.71,216.53,3.1497]
[1734500700953,9.00323147,216.69,216.57,4.08]
[1734500701253,9.00323147,216.69,216.55,13.08323147]
[1734500701454,2.308,216.64,216.58,2.3086]
[1734500701754,6.1387,216.68,216.58,2.3086]
[1734500701952,6.1387,216.68,216.55,9.00323147]
[1734500703647,2.3078,216.66,216.59,2.3086]
[1734500704554,6.1387,216.68,216.53,3.1497]
[1734500704753,9.00323147,216.66,216.53,3.1497]
[1734500705151,2.3083,216.62,216.55,2.309]
[1734500705351,2.3083,216.62,216.53,3.1497]
[1734500705352,9.00323147,216.66,216.53,3.1497]
[1734500705752,2.3084,216.61,216.54,2.3091]
[1734500706555,2.3085,216.6,216.53,2.3092]
[1734500706849,3.0038,216.65,216.5,3.86]
[1734500707054,9.00323147,216.63,216.49,9.00323147]
[1734500707351,12.86323147,216.63,216.5,0.42416]
[1734500707549,9.00323147,216.6,216.5,0.42416]
[1734500707945,2.9894,216.59,216.5,0.42416]
[1734500708855,3.1358,216.58,216.5,0.42416]
[1734500709052,2.3091,216.55,216.5,0.42416]
[1734500709252,3.1358,216.58,216.5,0.42416]
[1734500709451,3.86,216.62,216.52,9.00323147]
[1734500710959,2.3085,216.6,216.53,2.3092]
[1734500712155,3.86,216.62,216.52,9.00323147]
[1734500712350,3.86,216.62,216.5,0.42416]
[1734500712351,2.3087,216.58,216.51,2.3093]
[1734500713459,2.3089,216.56,216.5,0.42416]
[1734500713659,9.00323147,216.6,216.5,0.42416]
[1734500714055,2.3088,216.57,216.5,0.42416]
[1734500714260,3.1106,216.61,216.5,0.42416]
[1734500715057,2.3088,216.57,216.5,0.42416]
[1734500715257,3.1106,216.61,216.5,0.42416]